bitfinex/quotes_ETHUSD_20250923
["timestamp","ask_amount","ask_price","bid_price","bid_amount"]
[1758639636364,0.71976881,4179.2,4178.9,2.39296836]
[1758639636655,25.04846924,4179.7,4178.6,0.4665]
[1758639636656,2.57503817,4179.5,4178.6,0.4665]
[1758639636799,4.102,4179.4,4178.9,0.702]
[1758639637000,3.0,4179.2,4178.8,2.39298519]
[1758639637200,4.102,4179.3,4178.8,2.3929834]
[1758639637424,4.102,4179.3,4178.9,14.5]
[1758639637627,4.103,4179.2,4178.9,14.5]
[1758639637841,4.103,4179.2,4178.9,14.7355]
[1758639638006,4.103,4179.2,4178.9,14.5]
[1758639638335,3.35272883,4179.1,4177.9,2.3055]
[1758639638628,0.1192,4178.6,4177.9,0.1192]
[1758639638794,3.0,4178.4,4178.0,14.5]
[1758639639594,0.1192,4178.1,4178.0,14.5]
[1758639639828,4.103,4178.2,4178.0,14.5]
[1758639640129,4.103,4178.2,4178.0,16.89344295]
[1758639640330,4.103,4178.2,4178.1,2.39343242]
[1758639640532,4.103,4178.2,4178.1,2.85993242]
[1758639640835,4.103,4178.2,4178.0,14.5]
[1758639640836,4.103,4178.2,4178.0,14.7355]
[1758639641016,4.103,4178.2,4178.1,2.39343242]
[1758639641337,4.103,4178.2,4178.0,14.504]
[1758639641633,4.103,4178.2,4178.1,2.39343242]
[1758639641837,4.103,4178.2,4178.0,17.56548046]
[1758639642034,4.103,4178.2,4178.0,14.504]
[1758639642406,0.50695965,4178.1,4178.0,14.504]
[1758639642640,3.85906058,4178.1,4178.0,14.504]
[1758639642795,0.03352,4178.0,4177.5,0.004]
[1758639643002,0.72702573,4177.9,4177.5,0.004]
[1758639643198,3.0,4177.7,4177.5,0.004]
[1758639643536,6.88951641,4177.6,4177.5,0.004]
[1758639643736,5.39898001,4177.6,4177.5,0.004]
[1758639643941,4.49579753,4177.6,4177.5,0.004]
[1758639644237,8.08053236,4177.6,4177.5,0.004]
[1758639644608,3.97853236,4177.6,4177.5,2.39777618]
[1758639644866,0.85933236,4177.6,4177.5,3.18497618]
[1758639645065,0.03352,4178.0,4177.9,2.39354699]
[1758639645347,0.16596928,4178.0,4177.9,2.87226414]
[1758639645504,0.16596928,4178.0,4177.7,2.39366158]
[1758639645850,0.13244928,4177.9,4177.8,2.39360428]
[1758639646002,4.24144928,4177.9,4177.8,3.06160428]
[1758639646207,0.13244928,4177.9,4177.8,3.06160428]
[1758639647834,0.13244928,4177.9,4177.8,2.39360428]
[1758639648159,0.13244928,4177.9,4177.6,2.39367883]
[1758639648450,0.13244928,4177.8,4177.5,0.004]
[1758639648649,0.13243544,4177.7,4177.6,3.02819888]
[1758639648811,0.13243544,4177.7,4177.6,2.66581266]
[1758639649447,4.108,4177.9,4177.8,2.39360428]
[1758639649747,4.24043792,4177.9,4177.8,3.06160428]
[1758639649953,0.13243792,4177.9,4177.8,3.06160428]
[1758639650109,0.13243792,4177.9,4177.6,0.30561378]
[1758639650315,0.13243792,4177.8,4177.7,2.41759819]
[1758639650633,0.13243792,4177.8,4177.7,2.84999819]
[1758639650837,0.13243792,4177.8,4177.7,3.40533614]
[1758639651041,0.13243792,4177.8,4177.7,6.40533614]
[1758639651248,0.63458532,4178.7,4177.8,3.0]
[1758639651460,0.13249018,4178.6,4178.5,2.3932033]
[1758639651843,5.1229755,4178.6,4177.7,3.0]
[1758639652085,5.1229755,4178.6,4177.5,0.004]
[1758639652086,2.8380755,4178.5,4177.5,0.004]
[1758639652392,0.63458532,4178.0,4177.5,0.004]
[1758639652537,4.118,4177.9,4177.5,0.004]
[1758639652860,0.1324548,4177.8,4177.5,0.004]
[1758639653049,4.2514548,4177.7,4177.5,0.004]
[1758639653234,0.1324548,4177.6,4177.5,0.004]
[1758639653434,1.22097503,4177.6,4177.5,0.004]
[1758639653634,0.98107503,4177.6,4177.5,0.004]
[1758639653831,0.98103885,4177.6,4177.5,0.004]
[1758639654481,5.10003885,4177.6,4177.5,0.004]
[1758639654662,0.98103885,4177.6,4177.5,0.004]
[1758639654871,4.24941862,4177.6,4177.5,0.004]
[1758639655050,4.24941862,4177.6,4177.5,2.39777618]
[1758639655251,4.24941862,4177.6,4177.5,3.52100199]
[1758639655252,0.7683026,4177.6,4177.5,3.52100199]
[1758639655451,0.13241862,4177.6,4177.5,3.52100199]
[1758639655777,0.13241862,4177.6,4177.5,0.004]
[1758639656071,0.13161862,4177.6,4177.5,0.004]
[1758639657102,4.97643931,4177.6,4177.5,0.004]
[1758639657389,5.82505145,4177.6,4177.5,0.004]
[1758639658237,5.8256795,4177.6,4177.5,0.004]
[1758639658638,7.97643931,4177.6,4177.5,0.004]
[1758639659045,9.25017528,4177.6,4177.5,0.004]
[1758639659279,9.25032795,4177.6,4177.5,0.004]
[1758639659447,9.24732795,4177.6,4177.5,0.004]
[1758639659654,9.11598466,4177.6,4177.5,0.004]
[1758639660355,8.89480123,4177.6,4177.5,0.004]
[1758639660555,4.84213704,4177.6,4177.5,2.39777618]
[1758639660755,5.69163687,4177.6,4177.5,2.39777618]
[1758639660973,5.47040011,4177.6,4177.5,2.39777618]
[1758639661353,1.57961825,4177.6,4177.5,2.39777618]
[1758639661650,1.36728441,4177.6,4177.5,3.54733627]
[1758639662090,0.73013074,4177.6,4177.5,3.54733627]
[1758639662391,0.50891259,4177.6,4177.5,3.54733627]
[1758639662552,0.73026739,4177.6,4177.5,2.39777618]
[1758639662750,8.52996739,4177.6,4177.5,0.004]
[1758639662995,3.73026739,4177.6,4177.5,0.004]
[1758639663284,1.36791795,4177.6,4177.5,3.06577618]
[1758639663491,0.73026739,4177.6,4177.5,0.004]
[1758639663701,1.36791795,4177.6,4177.5,0.004]
[1758639663897,0.73026739,4177.6,4177.5,3.06577618]
[1758639664253,0.50891259,4177.6,4177.5,3.06577618]
[1758639665302,0.001,4177.9,4177.6,2.39367848]
[1758639665468,0.001,4177.9,4177.8,2.39360428]
[1758639665788,0.51118931,4177.9,4177.8,2.39360428]
[1758639665994,0.51118931,4177.9,4177.7,2.39365027]
[1758639666295,0.73146412,4177.8,4177.7,2.39365027]
[1758639666489,0.73146412,4177.8,4177.7,2.39366158]
[1758639666648,1.28187559,4177.8,4177.5,0.004]
[1758639666852,5.10636412,4177.7,4177.5,0.004]
[1758639667050,0.73146412,4177.6,4177.5,0.004]
[1758639667285,0.97136412,4177.6,4177.5,0.004]
[1758639667493,0.73152303,4177.6,4177.5,2.39777618]
[1758639668093,0.86431318,4177.6,4177.5,3.54733366]
[1758639668402,0.64308538,4177.6,4177.5,3.54733366]
[1758639668593,0.64308538,4177.6,4177.5,3.66653366]
[1758639668976,0.13279015,4177.6,4177.5,3.66653366]
[1758639669177,0.13279015,4177.6,4177.5,2.99853366]
[1758639669494,0.13279015,4177.6,4177.5,3.66653366]
[1758639670268,0.001,4177.9,4177.8,2.39360428]
[1758639670472,0.13391512,4177.9,4177.8,3.38451978]
[1758639670683,0.13391512,4177.9,4177.8,4.05251978]
[1758639671302,0.001,4177.9,4177.8,4.05251978]
[1758639672107,0.001,4177.9,4177.8,3.93331978]
[1758639672287,0.001,4177.9,4177.8,4.02858374]
[1758639672797,0.001,4177.9,4177.8,8.16358374]
[1758639672996,0.001,4177.9,4177.8,4.02858374]
[1758639673715,0.001,4177.9,4177.8,4.05251978]
[1758639675708,0.001,4177.9,4177.8,4.02858374]
[1758639675901,0.001,4177.9,4177.8,8.16058374]
[1758639676078,0.001,4177.9,4177.8,2.51280428]
[1758639676594,0.2416,4177.9,4177.8,2.51280428]
[1758639676789,0.2416,4177.9,4177.8,0.1192]
[1758639677093,0.7138,4177.9,4177.5,2.51697482]
[1758639677412,0.7128,4177.8,4177.5,2.51697482]
[1758639677617,0.2406,4177.7,4177.5,0.1232]
[1758639677913,0.84551044,4177.6,4177.5,0.004]
[1758639678514,0.13271044,4177.6,4177.5,0.004]
[1758639679017,4.13017069,4177.6,4177.5,0.004]
[1758639679186,4.63969341,4177.6,4177.5,0.004]
[1758639679992,2.24597453,4177.6,4177.5,0.004]
[1758639680196,8.44997453,4177.6,4177.5,0.004]
[1758639680716,10.84369341,4177.6,4177.5,0.004]
[1758639680916,10.84289341,4177.6,4177.5,0.004]
[1758639681819,10.97597453,4177.6,4177.5,0.004]
[1758639682018,13.36969341,4177.6,4177.5,0.004]
[1758639682320,13.84189341,4177.6,4177.5,0.004]
[1758639682502,13.36969341,4177.6,4177.5,0.004]
[1758639682683,10.97597453,4177.6,4177.5,0.004]
[1758639682885,13.36969341,4177.6,4177.5,0.004]
[1758639683320,13.84189341,4177.6,4177.5,0.004]
[1758639684219,13.62080308,4177.6,4177.5,0.004]
[1758639684604,11.2270842,4177.6,4177.5,0.004]
[1758639684805,3.64143316,4177.6,4177.5,0.004]
[1758639684984,0.13191044,4177.6,4177.5,2.39777618]
[1758639685387,0.13191044,4177.6,4177.5,0.004]
[1758639686788,0.13191044,4177.6,4177.5,2.39777618]
[1758639687099,0.13191044,4177.6,4177.5,0.004]
[1758639687427,0.13191044,4177.6,4177.5,2.39777618]
[1758639688108,3.13191044,4177.6,4177.5,0.004]
[1758639688624,0.13191044,4177.6,4177.5,2.39777618]
[1758639688928,0.001,4177.8,4177.5,0.6724]
[1758639688929,3.001,4177.8,4177.5,0.6724]
[1758639689093,3.001,4177.8,4177.6,2.39367908]
[1758639689423,3.7135,4177.8,4177.5,0.1232]
[1758639689627,0.2406,4177.7,4177.5,0.004]
[1758639689837,4.124,4177.6,4177.5,0.004]
[1758639690324,9.51771888,4177.6,4177.5,0.004]
[1758639690636,10.73974261,4177.6,4177.5,0.004]
[1758639690923,14.41655274,4177.6,4177.5,0.004]
[1758639691487,15.20855274,4177.6,4177.5,0.004]
[1758639691923,14.98752961,4177.6,4177.5,0.004]
[1758639692126,15.8463188,4177.6,4177.5,0.004]
[1758639692286,15.20866824,4177.6,4177.5,0.004]
[1758639692994,6.18594809,4177.2,4177.1,0.02]
[1758639693330,13.60441774,4177.2,4177.1,0.02]
[1758639693488,14.31721774,4177.2,4177.1,0.02]
[1758639693889,14.31712246,4177.2,4177.1,0.02]
[1758639695320,14.31612246,4177.2,4177.1,0.02]
[1758639695519,14.31712246,4177.2,4177.1,0.02]
[1758639696341,14.69246513,4177.2,4177.1,0.02]
[1758639696652,14.31712246,4177.2,4177.1,0.02]
[1758639697851,2.39442785,4176.4,4176.1,0.02]
[1758639698037,5.39452133,4176.2,4176.1,0.02]
[1758639698242,5.52696396,4176.2,4176.1,0.02]
[1758639698657,5.64701676,4176.2,4176.1,0.02]
[1758639699159,5.52696396,4176.2,4176.1,0.02]
[1758639699330,6.36325761,4176.2,4176.1,0.02]
[1758639699654,10.12102117,4176.2,4176.1,0.02]
[1758639699856,12.70010414,4176.2,4176.1,0.02]
[1758639700023,10.30558228,4176.2,4176.1,0.02]
[1758639700356,7.25344263,4176.2,4176.1,0.6884]
[1758639700522,3.13244263,4176.2,4176.1,0.6884]
[1758639700724,0.5080917,4177.1,4176.2,2.39452133]
[1758639700924,0.1192,4176.8,4176.3,0.6684]
[1758639701140,0.1192,4176.8,4176.4,2.62486025]
[1758639701141,4.121,4176.7,4176.4,2.62486025]
[1758639701328,0.1192,4176.8,4176.5,0.6932]
[1758639701854,7.122,4176.7,4176.6,3.087492]
[1758639702057,7.122,4176.7,4176.6,0.6932]
[1758639702259,3.0,4176.6,4176.1,0.1392]
[1758639702462,2.51366637,4176.3,4176.1,0.02]
[1758639702758,9.51652133,4176.2,4176.1,0.02]
[1758639703121,9.64886083,4176.2,4176.1,0.02]
[1758639703320,11.19571828,4176.2,4176.1,0.02]
[1758639703526,12.93032759,4176.2,4176.1,0.02]
[1758639704264,13.37372759,4176.2,4176.1,0.02]
[1758639705159,13.59438508,4176.2,4176.1,0.02]
[1758639705753,13.15018508,4176.2,4176.1,0.02]
[1758639706063,12.90377684,4176.2,4176.1,0.02]
[1758639706936,3.64078871,4176.2,4176.1,0.02]
[1758639707257,7.2523395,4176.2,4176.1,0.7132]
[1758639707461,0.1323395,4176.2,4176.1,0.7132]
[1758639707626,4.12,4176.2,4176.1,0.7132]
[1758639707825,0.1192,4176.6,4176.1,0.7132]
[1758639708060,2.072,4177.0,4176.5,2.39434933]
[1758639708234,4.25253375,4176.9,4176.6,0.6932]
[1758639708435,3.13253375,4176.8,4176.7,0.6932]
[1758639708636,4.25153375,4176.8,4176.7,0.4627]
[1758639709233,4.25153375,4176.8,4176.7,0.6932]
[1758639709959,4.25153375,4176.8,4176.3,0.2305]
[1758639709960,7.25153375,4176.8,4176.3,0.2305]
[1758639710124,5.394332,4176.6,4176.2,0.4627]
[1758639710325,6.64388329,4176.5,4176.1,0.1392]
[1758639710527,2.52694792,4176.4,4176.1,0.02]
[1758639710750,4.25054045,4176.3,4176.1,0.2505]
[1758639710939,4.117,4176.2,4176.1,0.7132]
[1758639711879,2.39407884,4177.0,4176.2,2.39447637]
[1758639712040,0.1192,4176.8,4176.3,0.6932]
[1758639712252,0.1192,4176.8,4176.2,2.39447637]
[1758639712253,3.0,4176.6,4176.4,0.6932]
[1758639712468,4.25054726,4176.5,4176.1,0.1392]
[1758639712777,4.118,4176.5,4176.1,0.4827]
[1758639713063,4.118,4176.5,4176.1,0.02]
[1758639713064,2.39452133,4176.2,4176.1,0.02]
[1758639713265,9.64608352,4176.2,4176.1,0.02]
[1758639714034,10.43808352,4176.2,4176.1,0.02]
[1758639714279,9.61482324,4176.2,4176.1,0.02]
[1758639714510,11.78839274,4176.2,4176.1,0.02]
[1758639714653,11.27923104,4176.2,4176.1,0.02]
[1758639714831,12.80136739,4176.2,4176.1,0.02]
[1758639715036,39.97703937,4176.2,4176.1,0.02]
[1758639715832,3.64172005,4176.2,4176.1,0.2505]
[1758639716032,7.119,4176.2,4176.1,3.10777867]
[1758639716293,0.13262427,4176.2,4176.1,3.10777867]
[1758639716434,3.0,4176.3,4176.1,0.7132]
[1758639716635,3.0,4176.3,4176.2,0.6932]
[1758639716933,0.1326743,4176.3,4176.2,3.08772133]
[1758639717129,0.1326743,4176.3,4176.2,18.15227111]
[1758639717558,0.1192,4176.7,4176.2,18.15227111]
[1758639717758,0.001,4176.7,4176.3,0.71714463]
[1758639717957,0.001,4176.7,4176.4,0.6932]
[1758639718171,0.001,4176.7,4176.5,2.39434933]
[1758639718350,0.001,4176.7,4176.6,16.894292]
[1758639718667,0.001,4176.7,4176.6,17.587492]
[1758639719248,0.001,4176.7,4176.6,19.58567613]
[1758639721042,0.001,4176.7,4176.6,22.58567613]
[1758639721546,0.001,4176.7,4176.6,24.65667613]
[1758639722442,0.001,4176.7,4176.6,25.44867613]
[1758639724074,0.001,4178.3,4178.2,2.39337513]
[1758639724278,0.001,4178.3,4178.2,7.01099156]
[1758639724443,0.001,4178.3,4178.2,7.68025781]
[1758639725045,0.001,4178.3,4178.2,22.18025781]
[1758639725804,0.001,4178.3,4178.2,22.97225781]
[1758639727106,0.021,4179.9,4178.9,2.3929536]
[1758639727285,0.021,4179.9,4179.7,2.39247965]
[1758639727613,0.021,4179.9,4179.0,7.46332298]
[1758639727614,0.021,4179.9,4179.8,0.02392458]
[1758639727805,0.021,4179.9,4179.8,17.01165896]
[1758639729174,0.001,4180.4,4179.9,2.39240173]
[1758639729374,0.001,4180.4,4180.3,2.39217281]
[1758639729596,0.001,4180.4,4180.3,7.00993288]
[1758639729780,0.001,4180.4,4180.3,17.37301116]
[1758639729982,0.001,4180.4,4180.3,21.48601116]
[1758639730210,0.001,4180.4,4180.3,16.89217281]
[1758639730783,0.0002,4180.4,4180.3,17.58537281]
[1758639733023,0.0002,4180.4,4180.3,18.37737281]
[1758639733622,0.0002,4180.4,4180.3,21.69537281]
[1758639733829,0.0002,4180.4,4180.3,17.12267281]
[1758639734110,0.0002,4180.4,4180.3,22.95466882]
[1758639734538,0.0002,4180.4,4180.3,16.89217281]
[1758639734676,0.0002,4180.4,4180.3,21.00417281]
[1758639735289,0.0002,4180.4,4180.3,14.5]
[1758639735623,0.0002,4180.4,4180.3,16.89217281]
[1758639735834,0.0002,4180.4,4180.3,17.12877281]
[1758639736107,0.0002,4180.4,4180.3,19.94617758]
[1758639737296,0.0002,4180.4,4180.3,23.60707758]
[1758639737496,0.0002,4180.4,4180.3,19.49207758]
[1758639737732,0.0002,4180.4,4180.3,23.60607758]
[1758639737893,0.0002,4180.4,4180.3,24.06017758]
[1758639738097,0.0002,4180.4,4180.3,14.5]
[1758639738400,0.0002,4180.4,4180.3,16.89217281]
[1758639738732,0.697,4180.4,4180.3,14.5]
[1758639739497,3.08911558,4180.4,4180.3,14.5]
[1758639739948,3.20831558,4180.4,4180.3,14.5]
[1758639740161,3.20831558,4180.4,4179.7,0.1192]
[1758639740162,0.1194,4180.4,4179.7,0.1192]
[1758639740300,0.0002,4180.4,4179.8,1.185]
[1758639740501,0.4531,4180.4,4180.3,14.5]
[1758639740706,0.5723,4180.4,4180.3,14.5]
[1758639741151,0.8162,4180.4,4180.3,14.5]
[1758639741506,3.20831558,4180.4,4180.3,14.5]
[1758639741711,3.76834738,4180.4,4180.3,14.5]
[1758639742552,6.76834738,4180.4,4180.3,14.5]
[1758639743458,3.0,4180.3,4179.7,0.1192]
[1758639743657,2.39241364,4179.9,4179.7,0.1192]
[1758639743951,2.39241364,4179.9,4179.8,14.5]
[1758639744149,2.63631364,4179.9,4179.8,14.5]
[1758639744333,3.08921364,4179.9,4179.8,14.5]
[1758639744518,3.2439,4180.3,4179.8,14.5]
[1758639744723,0.6968,4180.2,4179.8,14.5]
[1758639744920,2.3923911,4180.0,4179.8,14.5]
[1758639745251,2.63624892,4180.0,4179.8,14.5]
[1758639745454,2.39230184,4180.1,4179.8,14.5]
[1758639745644,0.2439,4180.0,4179.8,14.5]
[1758639745853,2.39267184,4179.5,4178.8,4.11]
[1758639746136,2.39263329,4179.5,4178.9,4.11]
[1758639746470,2.39278871,4179.3,4179.0,14.5]
[1758639746768,3.08961155,4179.2,4179.0,14.5]
[1758639746932,2.3928597,4179.1,4179.0,14.5]
[1758639747132,3.0896597,4179.1,4179.0,14.5]
[1758639747369,0.63697933,4179.1,4179.0,14.5]
[1758639747573,3.27373903,4179.1,4179.0,14.5]
[1758639747735,5.74776428,4179.1,4177.9,4.111]
[1758639747930,0.63698502,4179.0,4178.2,2.39333044]
[1758639748234,4.46277336,4179.3,4178.4,2.393211]
[1758639748235,0.50514587,4178.9,4178.4,2.393211]
[1758639748571,0.50514587,4178.8,4178.3,14.5]
[1758639748747,0.50514587,4178.7,4178.3,2.39331277]
[1758639748967,0.50514587,4178.7,4177.9,4.3476]
[1758639748968,2.39303149,4178.8,4177.9,4.111]
[1758639749133,2.28596388,4178.7,4178.0,14.5]
[1758639749338,0.63876073,4178.6,4178.0,14.5]
[1758639749532,0.63876073,4178.5,4178.0,14.5]
[1758639749734,0.63876073,4178.4,4178.0,14.7366]
[1758639749936,0.50682582,4178.3,4178.2,2.39337513]
[1758639750239,4.111,4178.6,4178.2,2.39337513]
[1758639750240,3.0,4178.6,4178.2,2.84747513]
[1758639750554,0.63924023,4178.5,4178.3,0.02393317]
[1758639750888,0.50720985,4178.4,4178.0,14.5]
[1758639751039,3.0,4178.6,4178.3,2.39331785]
[1758639751231,0.63941174,4178.5,4178.4,0.0239326]
[1758639751434,0.50729608,4178.5,4178.4,2.39326057]
[1758639751676,0.63556152,4179.1,4178.7,2.39304388]
[1758639751857,0.63967266,4179.0,4178.8,0.02393031]
[1758639752040,0.63967266,4178.9,4178.8,2.4169618]
[1758639752238,0.63967266,4178.9,4178.3,4.11]
[1758639752560,0.63967266,4178.8,4178.0,16.3611]
[1758639752766,0.63967266,4178.7,4178.1,2.39342983]
[1758639752972,0.63967266,4178.6,4178.1,2.39342983]
[1758639753167,0.50752918,4178.5,4178.4,2.39326057]
[1758639753373,0.50752918,4178.5,4178.4,3.10789317]
[1758639753700,4.74756152,4179.1,4178.4,0.7146326]
[1758639753856,0.63994803,4179.0,4178.4,3.10785047]
[1758639754196,0.63994803,4178.9,4178.4,0.7146326]
[1758639754351,0.63994803,4178.8,4178.4,0.0239326]
[1758639754551,0.63994803,4178.7,4178.5,15.1907]
[1758639754780,3.0,4178.9,4178.6,2.41707403]
[1758639755084,0.50771389,4178.8,4178.7,3.0837462]
[1758639755288,4.11,4179.3,4179.1,2.39285218]
[1758639755485,0.63996178,4179.2,4179.0,2.392905]
[1758639755689,0.50775493,4179.1,4179.0,2.629505]
[1758639755865,0.50775493,4179.1,4178.6,4.11]
[1758639755866,0.50695493,4179.1,4178.6,4.11]
[1758639756182,3.0,4179.4,4179.1,2.3928597]
[1758639756382,0.13220064,4179.3,4179.0,14.6192]
[1758639756582,0.13220064,4179.3,4179.0,14.5]
[1758639756583,0.13220064,4179.2,4179.0,14.5]
[1758639756787,0.13220064,4179.1,4179.0,14.5]
[1758639757185,0.82900064,4179.1,4179.0,14.5]
[1758639757395,3.22186034,4179.1,4179.0,14.5]
[1758639757552,3.96607266,4179.1,4179.0,14.5]
[1758639758072,1.57321296,4179.1,4179.0,14.5]
[1758639758268,0.94820064,4179.1,4179.0,14.5]
[1758639758469,3.34106034,4179.1,4179.0,14.5]
[1758639758677,10.45106034,4179.1,4179.0,14.5]
[1758639759071,10.67140559,4179.1,4179.0,14.5]
[1758639759270,8.27854589,4179.1,4178.4,0.1192]
[1758639759588,2.39315709,4178.6,4178.1,0.1232]
[1758639759774,0.13220064,4178.5,4178.2,14.5]
[1758639759961,6.50315709,4178.6,4178.2,14.5]
[1758639759962,0.13220064,4178.4,4178.2,14.5]
[1758639760163,0.13217794,4178.5,4178.2,14.5]
[1758639760388,0.13218337,4178.5,4178.3,0.02393317]
[1758639760586,0.13218337,4178.5,4178.1,0.1232]
[1758639760910,6.50318595,4178.6,4178.1,0.3598]
[1758639761214,0.13218107,4178.5,4178.4,14.5]
[1758639761634,0.63465099,4179.1,4178.4,14.5]
[1758639761796,4.23920264,4179.0,4178.5,0.02393203]
[1758639761976,3.13220264,4178.9,4178.5,0.02393203]
[1758639762326,0.13220264,4178.8,4178.4,15.2864]
[1758639762636,0.13220264,4178.8,4178.4,14.5]
[1758639762637,0.13220264,4178.7,4178.4,14.5]
[1758639762914,0.13220264,4178.6,4178.4,14.5]
[1758639763208,3.13220264,4178.5,4178.4,14.5]
[1758639764211,5.75880594,4178.5,4178.4,14.5]
[1758639764380,6.18980594,4178.5,4178.4,14.5]
[1758639764581,3.13220264,4178.5,4178.4,14.5]
[1758639764781,7.35640264,4178.5,4178.4,14.5]
[1758639764975,3.25140264,4178.5,4178.4,14.5]
[1758639765180,3.13220264,4178.5,4178.4,19.13006057]
[1758639765488,3.13220264,4178.5,4178.4,16.0696]
[1758639765686,3.13220264,4178.5,4178.4,14.6192]
[1758639765886,3.13220264,4178.5,4178.4,14.5]
[1758639765887,7.23836633,4178.5,4178.4,14.5]
[1758639766111,3.13236633,4178.5,4178.4,16.89326057]
[1758639766316,3.13236633,4178.5,4178.4,17.56046057]
[1758639766696,3.13242912,4178.5,4178.4,17.56046057]
[1758639767481,3.13242912,4178.5,4178.4,14.6192]
[1758639767822,8.295173,4178.5,4178.1,0.004]
[1758639768025,0.64153009,4178.4,4178.1,0.004]
[1758639768229,0.64153009,4178.3,4178.1,0.004]
[1758639768391,8.32186057,4178.2,4178.1,0.004]
[1758639768590,7.04797193,4178.2,4178.1,0.004]
[1758639768791,3.18566158,4177.7,4177.6,0.004]
[1758639769017,15.06427906,4177.7,4177.6,0.004]
[1758639769219,15.72867906,4177.7,4177.6,0.004]
[1758639769525,14.45558307,4177.7,4177.6,0.004]
[1758639769927,14.79390575,4177.7,4177.6,0.004]
[1758639771128,14.45558307,4177.7,4177.6,0.004]
[1758639771326,14.45658307,4177.7,4177.6,0.004]
[1758639771897,14.83190489,4177.7,4177.6,0.004]
[1758639772317,8.64590489,4177.7,4177.6,0.004]
[1758639772522,14.83290489,4177.7,4177.6,0.004]
[1758639773315,16.10155617,4177.7,4177.6,0.004]
[1758639774604,14.83090489,4177.7,4177.6,0.004]
[1758639775004,12.75890489,4177.7,4177.6,0.004]
[1758639775253,5.64241144,4177.7,4177.6,0.004]
[1758639775466,10.07427573,4177.7,4177.6,0.004]
[1758639775657,13.07427573,4177.7,4177.6,0.004]
[1758639775849,13.30767573,4177.7,4177.6,0.004]
[1758639776167,13.07427573,4177.7,4177.6,0.004]
[1758639776462,10.36825838,4177.7,4177.6,0.004]
[1758639776771,11.46993607,4177.7,4177.6,0.004]
[1758639777065,13.86259765,4177.7,4177.6,0.004]
[1758639777363,12.43825838,4177.7,4177.6,0.004]
[1758639777724,10.0445968,4177.7,4177.6,0.004]
[1758639777919,12.43825838,4177.7,4177.6,0.004]
[1758639778969,14.09867573,4177.7,4177.6,0.004]
[1758639779168,13.86527573,4177.7,4177.6,0.004]
[1758639779472,15.57581539,4177.7,4177.6,0.004]
[1758639779782,15.57481539,4177.7,4177.6,0.004]
[1758639780269,15.60419804,4177.7,4177.6,0.004]
[1758639780564,15.60419804,4177.7,4177.2,14.504]
[1758639780565,3.18589079,4177.3,4177.2,0.004]
[1758639780772,11.90687724,4177.3,4177.2,0.004]
[1758639780918,8.46027724,4177.3,4177.2,0.004]
[1758639781123,14.64227724,4177.3,4177.2,0.004]
[1758639781716,14.73830171,4177.3,4177.2,0.004]
[1758639782327,15.57656904,4177.3,4177.2,0.004]
[1758639782560,14.17487259,4177.3,4177.2,0.004]
[1758639782736,14.30711836,4177.3,4177.2,0.004]
[1758639783144,8.12511836,4177.3,4177.2,0.004]
[1758639783347,14.30411836,4177.3,4177.2,0.004]
[1758639783729,8.12511836,4177.3,4177.2,0.004]
[1758639783928,15.15172109,4177.3,4177.2,0.004]
[1758639784164,14.73611836,4177.3,4177.2,0.004]
[1758639785366,6.18594809,4177.2,4177.1,0.02]
[1758639785548,2.39452133,4176.2,4176.1,0.024]
[1758639785757,12.21271748,4176.2,4176.1,0.024]
[1758639786066,12.43315235,4176.2,4176.1,0.024]
[1758639786420,13.06806221,4176.2,4176.1,0.024]
[1758639786665,12.43315235,4176.2,4176.1,0.024]
[1758639786838,13.181342,4176.2,4176.1,0.024]
[1758639787868,13.181342,4176.2,4176.1,0.6912]
[1758639788029,13.181342,4176.2,4176.1,0.2606]
[1758639788223,7.003342,4176.2,4176.1,0.2606]
[1758639788420,13.178342,4176.2,4176.1,0.6912]
[1758639788625,3.86063102,4176.2,4176.1,0.6912]
[1758639788827,7.74519615,4176.2,4176.1,0.6912]
[1758639789037,7.74519615,4176.2,4176.1,0.024]
[1758639789234,10.99513543,4176.2,4176.1,0.6912]
[1758639789433,7.96562247,4176.2,4176.1,0.6912]
[1758639789835,7.96462247,4176.2,4176.1,0.6912]
[1758639790023,7.86339615,4176.2,4176.1,0.6912]
[1758639790562,8.08381371,4176.2,4176.1,0.6912]
[1758639790770,8.08381372,4176.2,4176.1,0.6912]
[1758639791066,10.47833505,4176.2,4176.1,0.6912]
[1758639791285,12.03630869,4176.2,4176.1,0.024]
[1758639792459,12.88285518,4176.2,4176.1,0.024]
[1758639792672,6.05181372,4176.2,4176.1,0.6905]
[1758639792836,3.97981372,4176.2,4176.1,0.6905]
[1758639793032,7.86139615,4176.2,4176.1,0.6905]
[1758639793233,0.64019615,4176.2,4176.1,3.08507867]
[1758639793452,4.74119615,4176.2,4176.1,3.08507867]
[1758639793684,4.74119615,4176.2,4176.1,0.6905]
[1758639794030,4.74219615,4176.2,4176.1,3.08507867]
[1758639794234,4.74119615,4176.2,4176.1,3.76656851]
[1758639794435,7.74119615,4176.2,4176.1,3.20427867]
[1758639794632,7.74119615,4176.2,4176.1,0.6905]
[1758639794875,3.64019615,4176.2,4176.1,0.6905]
[1758639795045,7.74319615,4176.2,4176.1,0.6905]
[1758639795447,3.64019615,4176.2,4176.1,3.08507867]
[1758639795874,3.64019615,4176.2,4176.1,3.6473677]
[1758639796474,0.63558693,4176.9,4176.7,2.39422736]
[1758639796771,3.0,4176.7,4176.1,0.70548903]
[1758639796980,0.64214983,4176.6,4176.1,0.58628903]
[1758639797132,0.64214983,4176.5,4176.2,15.1665]
[1758639797335,0.64214983,4176.4,4176.3,0.7857]
[1758639797588,0.64214983,4176.4,4176.3,3.18016399]
[1758639797751,0.64214983,4176.4,4176.3,0.7857]